bitfinex-derivatives/quotes_ETHF0:USTF0_20210705
["timestamp","ask_amount","ask_price","bid_price","bid_amount"]
[1625449664514,2.20527,2269.5,2269.4,2.20527]
[1625449666423,4.41054,2269.5,2269.4,2.20527]
[1625449670743,4.41054,2269.5,2269.0,14.9664]
[1625449671194,4.41054,2269.5,2268.5,14.9409]
[1625449671295,4.41054,2269.5,2267.6,14.5769]
[1625449671395,4.41054,2269.5,2267.6,15.5769]
[1625449671808,9.41054,2269.5,2267.6,15.5769]
[1625449671910,56.1927,2269.0,2267.6,15.5769]
[1625449672007,56.1927,2269.0,2267.6,14.5769]
[1625449672459,2.20527,2268.7,2268.6,2.20527]
[1625449673108,2.20527,2268.7,2268.4,0.36231501]
[1625449674461,2.20527,2268.5,2268.4,0.36231501]
[1625449683149,2.20527,2268.5,2267.9,2.20527]
[1625449684304,5.0,2268.4,2267.7,0.37235729]
[1625449684401,2.20527,2268.5,2267.7,0.37235729]
[1625449684503,4.41054,2267.8,2267.7,0.37235729]
[1625449684601,6.70274,2267.8,2267.7,0.37235729]
[1625449687629,4.41054,2267.8,2267.7,0.37235729]
[1625449687730,4.759,2268.6,2267.7,0.37235729]
[1625449687829,4.759,2268.6,2267.7,3.86125729]
[1625449688527,4.41054,2267.8,2267.7,3.86125729]
[1625449692584,4.41054,2267.8,2267.7,6.06652729]
[1625449693637,4.41054,2267.8,2267.7,3.86125729]
[1625449694589,4.41054,2267.8,2267.7,6.06652729]
[1625449700016,4.41054,2267.8,2267.7,3.86125729]
[1625449700615,4.41054,2267.8,2267.7,6.06652729]
[1625449701937,2.20527,2267.8,2267.7,6.06652729]
[1625449702823,2.20527,2268.3,2267.7,6.06652729]
[1625449704728,2.20527,2268.3,2268.0,2.20527]
[1625449704931,1.0,2269.5,2268.0,2.20527]
[1625449705028,55.3273,2269.6,2268.0,2.20527]
[1625449706183,50.5683,2269.6,2268.0,2.20527]
[1625449706682,2.20527,2268.9,2268.8,2.20527]
[1625449711104,0.5,2269.9,2268.8,4.49097]
[1625449711508,0.5,2269.9,2268.9,16.129315]
[1625449712711,2.20527,2269.7,2269.6,2.20527]
[1625449714766,2.20527,2269.7,2269.4,2.20527]
[1625449716472,2.20527,2269.7,2269.5,15.939699]
[1625449716575,2.20527,2269.7,2269.5,18.352799]
[1625449716775,2.20527,2269.7,2269.6,2.20527]
[1625449717079,2.20527,2269.7,2269.6,18.209941]
[1625449717578,2.20527,2269.7,2269.6,2.20527]
[1625449719731,2.20527,2269.7,2268.3,1.0]
[1625449719832,49.8657,2268.7,2267.6,14.5769]
[1625449719930,52.4556,2268.7,2267.6,14.5769]
[1625449720484,52.4556,2268.7,2267.8,16.034832]
[1625449720785,52.4556,2268.7,2268.6,4.41054]
[1625449722236,2.5899,2268.7,2268.6,4.41054]
[1625449722435,2.20527,2268.8,2268.6,4.41054]
[1625449722535,2.20527,2268.8,2268.6,7.38564]
[1625449722886,14.8498,2269.7,2268.6,7.38564]
[1625449722987,13.8498,2269.7,2268.6,7.38564]
[1625449723188,0.5,2269.9,2268.6,7.38564]
[1625449724792,2.20527,2269.7,2269.6,2.20527]
[1625449724992,2.20527,2269.7,2269.5,2.4013]
[1625449726145,2.20527,2269.7,2268.6,2.9751]
[1625449726797,2.20527,2269.7,2269.5,2.20527]
[1625449728799,4.41054,2269.7,2269.5,2.20527]
[1625449730211,2.20527,2269.7,2269.5,2.20527]
[1625449737941,2.20527,2269.7,2269.6,15.893552]
[1625449738143,2.70527,2269.9,2269.6,15.893552]
[1625449738896,2.70527,2269.9,2269.8,2.20527]
[1625449739195,2.70527,2269.9,2269.8,18.185599]
[1625449741454,2.70527,2269.9,2269.8,20.605199]
[1625449746419,2.70527,2269.9,2269.8,4.62487]
[1625449746512,5.20517,2269.9,2269.8,2.20527]
[1625449749237,5.20517,2269.9,2268.5,30.7108]
[1625449749341,5.20517,2269.9,2268.5,29.7108]
[1625449749735,38.1669,2269.0,2268.5,29.7108]
[1625449749838,40.5786,2269.0,2268.5,29.7108]
[1625449750287,40.5786,2269.0,2268.5,14.6012]
[1625449750939,2.20527,2268.7,2268.6,2.20527]
[1625449752948,4.41054,2268.7,2268.6,2.20527]
[1625449764088,5.29634,2268.7,2268.6,2.20527]
[1625449764188,4.41054,2268.7,2268.6,2.20527]
[1625449771408,7.23924,2268.7,2268.6,2.20527]
[1625449771512,7.23924,2268.7,2268.4,2.20527]
[1625449771613,7.23924,2268.7,2267.7,0.37235729]
[1625449772014,50.0776,2267.8,2267.7,0.37235729]
[1625449772124,52.4562,2267.8,2267.7,0.37235729]
[1625449773031,54.66147,2267.8,2267.7,2.57762729]
[1625449782958,54.66147,2267.8,2267.7,0.37235729]
[1625449783061,54.66147,2267.8,2267.1,14.1612]
[1625449783162,54.66147,2267.8,2267.1,16.36647]
[1625449783378,54.66147,2267.8,2267.1,2.20527]
[1625449783463,59.66147,2267.8,2267.1,2.20527]
[1625449783565,59.66147,2267.8,2266.9,2.20527]
[1625449784366,59.66147,2267.8,2266.3,0.39244186]
[1625449785166,9.41054,2266.4,2266.3,4.186e-05]
[1625449785318,12.93414,2266.4,2265.7,0.40248414]
[1625449785418,12.93414,2266.4,2265.0,0.41252643]
[1625449785715,12.93414,2266.4,2264.8,1.29803451]
[1625449785819,43.9937,2264.9,2264.8,1.23183451]
[1625449785916,47.6934,2264.9,2264.8,1.23183451]
[1625449786219,47.6934,2264.9,2264.7,8.283e-05]
[1625449786320,47.6934,2264.9,2263.8,1.29592485]
[1625449786774,5.0,2264.8,2263.8,1.29592485]
[1625449786871,47.6934,2264.9,2263.8,1.29592485]
[1625449786970,52.6934,2264.9,2264.2,13.77566871]
[1625449787069,3.6997,2264.9,2264.2,13.77566871]
[1625449787175,0.8822,2266.0,2264.2,15.98093871]
[1625449787176,2.20527,2264.4,2264.2,15.98093871]
[1625449787271,0.8822,2266.0,2264.2,15.98093871]
[1625449787369,2.1,2266.2,2264.2,15.98093871]
[1625449787470,2.1,2266.2,2264.2,13.77566871]
[1625449788082,5.0,2266.1,2264.2,13.77566871]
[1625449788183,52.6726,2264.9,2264.2,13.77566871]
[1625449788587,52.6726,2264.9,2263.6,0.43261099]
[1625449788689,5.0,2264.8,2263.6,0.43261099]
[1625449789088,5.0,2264.8,2263.6,1.099e-05]
[1625449789191,4.41054,2263.7,2263.6,1.099e-05]
[1625449792659,1.0,2265.1,2263.6,1.099e-05]
[1625449792758,16.3483,2265.8,2263.6,2.78371099]
[1625449792862,14.2483,2265.8,2263.6,2.78371099]
[1625449793157,2.20527,2264.3,2264.2,2.20527]
[1625449793258,2.20527,2264.3,2264.2,5.58057]
[1625449793563,2.20527,2264.3,2264.2,3.3753]
[1625449794060,41.30077,2264.3,2264.2,3.3753]
[1625449794359,2.20527,2264.3,2264.2,3.3753]
[1625449795210,4.41054,2264.3,2264.2,3.3753]
[1625449795662,4.41054,2264.3,2263.7,2.20527]
[1625449797015,2.8231,2264.4,2263.7,2.20527]
[1625449797117,2.8231,2264.4,2263.8,16.158304]
[1625449797216,4.41054,2263.9,2263.8,16.158304]
[1625449797320,7.63344,2263.9,2263.8,16.158304]
[1625449797431,7.63344,2263.9,2263.7,2.20527]
[1625449797520,51.54214,2263.9,2263.7,2.20527]
[1625449797720,51.54214,2263.9,2263.6,1.099e-05]
[1625449799521,7.63344,2263.9,2263.6,1.099e-05]
[1625449801988,4.41054,2263.9,2263.6,1.099e-05]
[1625449802087,2.20527,2263.9,2263.6,1.099e-05]
[1625449802192,2.20527,2263.9,2263.7,15.951279]
[1625449802289,2.20527,2263.9,2263.7,69.471979]
[1625449802491,2.20527,2263.9,2263.7,19.017579]
[1625449803247,2.20527,2263.9,2263.8,2.20527]
[1625449803342,0.883,2266.4,2263.8,2.20527]
[1625449803441,15.2483,2265.8,2263.8,2.20527]
[1625449803693,15.2483,2265.8,2263.8,18.300167]
[1625449805245,2.20527,2264.9,2264.8,2.20527]
[1625449805545,2.20527,2264.9,2264.8,18.231967]
[1625449805746,2.20527,2264.9,2264.8,16.026697]
[1625449806045,2.20527,2264.9,2264.0,16.017489]
[1625449806549,2.20527,2264.9,2263.7,16.01888]
[1625449807149,2.20527,2264.9,2263.7,19.56578]
[1625449807248,2.20527,2264.9,2264.6,2.20527]
[1625449807555,2.20527,2264.9,2264.7,16.133298]
[1625449808152,2.20527,2265.1,2264.7,16.133298]
[1625449809005,3.733,2267.3,2265.0,55.3137]
[1625449809105,1.1,2267.0,2265.0,55.3137]
[1625449809306,2.20527,2266.1,2265.9,2.20527]
[1625449810569,2.20527,2266.1,2265.7,2.20527]
[1625449810659,2.412,2265.8,2265.7,2.20527]
[1625449811308,4.61727,2265.8,2265.7,2.20527]
[1625449811408,4.61727,2265.8,2264.2,54.7142]
[1625449811710,2.20527,2265.8,2264.2,54.7142]
[1625449812017,2.20527,2265.8,2264.3,16.012049]
[1625449812566,4.98657,2265.8,2264.3,16.012049]
[1625449812763,4.98657,2265.8,2263.9,16.148446]
[1625449813066,4.98657,2265.8,2264.4,16.070842]
[1625449813369,4.98657,2265.8,2265.7,1.20527]
[1625449813819,4.98657,2265.8,2264.5,15.986369]
[1625449813915,4.98657,2265.8,2263.7,20.724618]
[1625449814016,4.98657,2265.8,2263.7,4.759]
[1625449814469,4.98657,2265.8,2263.8,16.086826]
[1625449814669,4.98657,2265.8,2263.8,21.086826]
[1625449815170,4.98657,2265.8,2264.8,37.1374]
[1625449815369,4.98657,2265.8,2265.2,2.20527]
[1625449815721,4.98657,2265.8,2265.3,16.133699]
[1625449816974,2.7813,2265.8,2265.3,16.133699]
[1625449817080,1.3853,2265.8,2265.3,16.133699]
[1625449817275,52.7808,2267.8,2265.3,16.133699]
[1625449817376,2.20527,2267.4,2267.0,2.20527]
[1625449818275,0.72027,2267.4,2267.0,2.20527]
[1625449818476,0.72027,2267.4,2267.1,16.141833]
[1625449818578,0.72027,2267.4,2267.2,51.0559]
[1625449818677,52.7808,2267.8,2267.2,51.0559]
[1625449818879,52.7808,2267.8,2267.3,16.114945]
[1625449819390,52.7808,2267.8,2267.7,4.41054]
[1625449820079,52.7808,2267.8,2267.7,3.3652001]
[1625449820281,52.7808,2267.8,2267.7,19.3099231]
[1625449820953,52.7808,2267.8,2267.7,3.3652001]
[1625449821146,52.7808,2267.8,2265.9,5.0]
[1625449821251,3.0432,2267.8,2265.9,5.0]
[1625449821351,2.20527,2267.5,2267.4,2.20527]
[1625449821653,2.20527,2267.7,2267.4,2.20527]
[1625449821862,3.0432,2267.8,2267.4,2.20527]
[1625449822257,1.0,2269.0,2267.4,2.20527]
[1625449822357,2.27278876,2269.1,2267.5,16.060526]
[1625449822558,17.12146747,2269.2,2267.5,16.060526]
[1625449822661,2.27246747,2269.2,2267.5,16.060526]
[1625449823357,2.20527,2268.1,2267.7,2.20527]
[1625449823657,2.20527,2268.1,2267.8,15.898234]
[1625449824009,2.20527,2268.1,2267.7,2.20527]
[1625449825457,2.20527,2267.8,2267.7,2.20527]
[1625449825938,2.9846,2268.2,2267.7,2.20527]
[1625449826026,1.0,2269.2,2267.7,5.78477]
[1625449826122,9.05663433,2269.8,2267.7,5.78477]
[1625449826217,4.05663433,2269.8,2267.7,5.78477]
[1625449826509,4.05663433,2269.8,2268.2,55.0152]
[1625449826708,4.05663433,2269.8,2268.2,57.6634]
[1625449826811,4.05663433,2269.8,2268.3,15.980497]
[1625449827409,1.1,2269.8,2268.3,15.980497]
[1625449827709,2.20527,2269.1,2268.3,15.980497]
[1625449828361,2.20527,2269.1,2268.4,1.0]
[1625449833420,2.20527,2268.5,2268.4,1.0]
[1625449836531,0.5,2269.9,2268.4,1.0]
[1625449837431,2.20527,2268.8,2268.6,2.20527]
[1625449837533,2.20527,2268.8,2268.7,1.0]
[1625449837843,0.5,2269.9,2268.7,1.0]
[1625449838034,0.5,2269.9,2268.7,4.1347]
[1625449838436,0.5,2269.9,2268.8,15.88402]
[1625449838538,0.5,2269.9,2269.3,44.6133]
[1625449838635,0.5,2269.9,2269.4,1.0]
[1625449839087,3.9865,2269.9,2269.1,1.0]
[1625449839284,45.1874,2269.8,2269.1,1.0]
[1625449839686,2.20527,2269.3,2269.2,2.20527]
[1625449840185,2.20527,2269.3,2269.2,3.20527]
[1625449841437,4.41054,2269.3,2269.2,3.20527]
[1625449843054,0.5,2269.9,2269.2,3.20527]
[1625449843156,0.5,2269.9,2269.2,21.465088]
[1625449843455,0.5,2269.9,2269.6,2.20527]
[1625449843556,0.5,2269.9,2269.6,3.20527]
[1625449844514,0.5,2269.9,2269.7,19.814879]
[1625449844862,0.5,2269.9,2269.8,1.0]
[1625449847464,0.5,2269.9,2269.8,3.20527]
[1625449849017,0.5,2269.9,2269.8,19.189021]
[1625449851822,0.0001,2269.9,2269.8,19.189021]
[1625449854538,1.38527,2271.0,2269.8,19.189021]
[1625449854638,1.38527,2271.0,2269.8,22.908521]
[1625449854738,1.38527,2271.0,2269.8,27.908521]
[1625449855544,1.38527,2271.0,2270.9,4.41054]
[1625449855641,1.38527,2271.0,2270.9,5.41054]
[1625449856244,1.38527,2271.0,2270.9,4.41054]
[1625449856855,1.38527,2271.0,2270.9,3.36662788]
[1625449858057,1.6,2272.2,2270.9,3.36662788]
[1625449858158,1.6,2272.2,2270.9,4.36662788]
[1625449858809,1.6,2272.2,2271.0,15.883397]
[1625449858910,1.6,2272.2,2271.1,1.0]
[1625449859213,1.6,2272.2,2270.9,3.36662788]
[1625449859310,4.0295,2271.6,2270.9,3.36662788]
[1625449859611,2.20527,2271.0,2270.9,3.36662788]
[1625449859714,4.68117,2271.0,2270.9,3.36662788]
[1625449860863,3.4759,2271.0,2270.9,3.36662788]
[1625449861414,4.0295,2271.6,2270.9,3.36662788]
[1625449861615,2.20527,2271.4,2271.3,2.20527]
[1625449862168,4.0295,2271.6,2270.9,1.16135788]
[1625449862968,4.0295,2271.6,2269.5,14.3799]
[1625449863571,4.0295,2271.6,2269.6,15.867462]
[1625449863675,5.70117,2270.6,2270.5,2.20527]
[1625449863773,5.70117,2270.6,2270.3,2.20527]
[1625449863871,5.70117,2270.6,2269.6,15.867462]
[1625449863971,5.70117,2270.6,2268.1,15.0356]
[1625449864472,5.70117,2270.6,2269.1,15.975691]
[1625449865675,5.70117,2270.6,2269.8,2.20527]
[1625449865676,2.20527,2270.3,2269.8,2.20527]
[1625449867782,2.20527,2270.6,2269.8,2.20527]
[1625449868095,2.20527,2270.6,2269.9,16.049999]
[1625449869634,2.20527,2270.6,2270.1,2.20527]
[1625449872039,3.08637,2270.6,2270.1,2.20527]
[1625449872540,2.20527,2270.6,2270.1,2.20527]
[1625449872641,2.20527,2270.8,2270.1,2.20527]
[1625449873691,2.20527,2270.8,2270.4,2.20527]
[1625449875654,2.20527,2270.5,2270.4,2.20527]
[1625449878468,2.20527,2270.5,2270.1,2.20527]
[1625449878964,3.09637,2270.5,2270.1,2.20527]
[1625449879613,2.20527,2270.5,2270.1,2.20527]
[1625449879714,2.20527,2270.2,2270.1,2.20527]
[1625449879816,4.47957,2270.2,2270.1,2.20527]
[1625449881164,2.20527,2270.2,2270.1,2.20527]
[1625449883625,3.07357,2270.2,2270.1,2.20527]
[1625449885025,2.20527,2270.2,2270.1,2.20527]
[1625449885475,1.8763,2271.4,2270.1,2.20527]
[1625449885576,0.5,2271.6,2270.1,2.20527]
[1625449885776,2.20527,2270.8,2270.5,2.20527]
[1625449886579,3.09497,2270.8,2270.5,2.20527]
[1625449888383,2.20527,2270.8,2270.5,2.20527]
[1625449888583,0.5,2271.6,2270.5,4.54557]
[1625449889733,2.20527,2271.2,2271.0,2.20527]
[1625449889831,3.07517,2271.2,2271.0,2.20527]
[1625449890436,3.07517,2271.2,2270.5,4.54557]
[1625449891641,2.20527,2271.2,2270.5,4.54557]
[1625449891741,2.20527,2271.2,2271.1,4.41054]
[1625449891941,2.20527,2271.2,2271.1,7.73204]
[1625449892291,2.20527,2271.2,2271.1,3.3215]
[1625449892444,2.20527,2271.4,2271.1,3.3215]
[1625449893045,3.09467,2271.4,2271.1,3.3215]
[1625449893147,3.09467,2271.4,2269.9,4.6658]
[1625449893246,3.09467,2271.4,2269.9,3.6658]
[1625449893346,3.09467,2271.4,2266.8,3.32290259]
[1625449893446,0.8894,2271.4,2266.8,3.32290259]
[1625449893660,0.5,2271.6,2270.0,15.955349]
[1625449893748,2.70527,2271.6,2271.5,4.41054]
[1625449896015,0.5,2271.6,2271.5,4.41054]
[1625449903241,0.5,2271.6,2270.2,30.6063]
[1625449903340,0.5,2271.6,2270.2,28.7188]
[1625449903842,2.20527,2271.3,2271.2,2.20527]
[1625449904148,2.20527,2271.3,2271.2,18.178698]
[1625449904692,2.20527,2271.3,2271.2,2.20527]
[1625449907847,0.5,2271.6,2271.2,2.20527]
[1625449909900,0.5,2271.6,2271.5,2.20527]
[1625449915999,0.5,2271.6,2271.2,2.20527]
[1625449916103,0.5,2271.6,2270.2,29.5957]
[1625449916195,3.4036,2271.6,2270.2,28.7188]
[1625449916739,3.4036,2271.6,2270.3,15.919082]
[1625449916997,3.4036,2271.6,2270.2,28.7188]
[1625449917941,2.20527,2271.0,2270.9,2.20527]
[1625449918044,4.86827,2271.0,2270.9,2.20527]
[1625449919948,7.07354,2271.0,2270.9,2.20527]
[1625449920905,7.07354,2271.0,2270.2,14.565]
[1625449921003,7.07354,2271.0,2268.9,1.0]
[1625449921101,8.07354,2271.0,2268.8,14.8268]
[1625449921604,5.0,2270.9,2268.8,14.8268]
[1625449921706,6.0,2270.9,2268.9,16.095624]
[1625449922004,6.0,2270.9,2267.8,2.58539581]
[1625449922005,1.1,2270.8,2267.9,1.0]
[1625449922105,1.0,2270.7,2267.9,1.0]
[1625449922209,58.139,2268.9,2267.9,3.20527]
[1625449922305,58.139,2268.9,2267.9,16.52107]
[1625449922608,58.139,2268.9,2267.9,2.20527]
[1625449924022,2.20527,2268.0,2267.9,2.20527]
[1625449924222,2.20527,2268.0,2267.6,2.20527]
[1625449924423,2.20527,2268.0,2266.6,14.3523]
[1625449924671,2.20527,2268.0,2266.7,0.17416979]
[1625449925079,2.20527,2268.0,2266.8,16.087327]
[1625449925177,2.20527,2268.0,2266.8,20.846327]
[1625449925680,2.20527,2268.0,2266.9,0.17415733]
[1625449925980,2.20527,2268.0,2267.9,2.20527]
[1625449926081,2.20527,2268.0,2267.9,5.73407]
[1625449926630,0.8833,2269.3,2267.9,5.73407]
[1625449926845,14.4374,2270.0,2267.9,5.73407]
[1625449927142,15.4374,2270.0,2267.9,5.73407]
[1625449927234,15.4374,2270.0,2268.4,41.0675]
[1625449927345,14.4374,2270.0,2268.4,44.8524]
[1625449927536,4.759,2271.2,2268.5,16.116664]
[1625449927734,4.759,2271.2,2268.5,17.116664]
[1625449927941,1.1,2271.1,2269.6,2.20527]
[1625449928035,2.20527,2269.7,2269.6,4.81737]
[1625449928337,1.0,2271.0,2269.6,4.81737]
[1625449928436,1.1,2271.1,2269.6,4.81737]
[1625449929995,2.20527,2270.2,2270.1,2.20527]
[1625449930394,1.0,2271.2,2270.1,2.20527]
[1625449930491,40.1354,2271.3,2270.1,2.20527]
[1625449930591,40.1354,2271.3,2270.1,4.54947]
[1625449931996,2.20527,2270.7,2270.1,4.54947]
[1625449932696,2.20527,2270.7,2270.1,5.44227]
[1625449932998,2.20527,2270.7,2270.1,4.54947]
[1625449933999,2.20527,2270.7,2270.6,4.41054]
[1625449934101,2.20527,2270.7,2270.6,6.68314]
[1625449936055,2.20527,2271.2,2270.6,6.68314]
[1625449936556,2.20527,2271.2,2270.7,15.850133]
[1625449936656,0.5,2271.6,2270.7,15.850133]
[1625449937506,2.03081767,2272.5,2270.7,20.850133]
[1625449937608,0.8843,2272.6,2270.7,20.850133]
[1625449937707,0.5,2272.7,2270.7,20.850133]
[1625449938008,2.20527,2272.3,2272.2,2.20527]
[1625449938108,2.20527,2272.3,2272.2,4.93927]
[1625449940011,4.41054,2272.3,2272.2,4.93927]
[1625449945170,4.41054,2272.3,2272.2,20.938006]
[1625449948636,4.41054,2272.3,2272.2,4.93927]
[1625449953148,7.94734,2272.3,2272.2,2.20527]
[1625449953250,7.94734,2272.3,2271.9,2.20527]
[1625449953448,7.94734,2272.3,2270.8,1.0]
[1625449953614,7.94734,2272.3,2270.2,1.0]
[1625449953699,8.94734,2272.3,2270.1,55.0225]
[1625449954101,8.94734,2272.3,2270.2,15.976388]
[1625449954203,2.20527,2271.6,2271.5,2.20527]
[1625449954307,5.67327,2271.6,2271.5,2.20527]
[1625449956259,7.87854,2271.6,2271.5,2.20527]
[1625449957361,3.468,2271.6,2271.5,2.20527]
[1625449957514,1.5,2272.7,2271.5,2.20527]
[1625449957617,0.5,2272.7,2271.5,2.20527]
[1625449958220,2.20527,2272.0,2271.8,2.20527]
[1625449959120,2.20527,2272.0,2271.5,2.20527]
[1625449959330,2.20527,2272.0,2271.5,3.08347]
[1625449959623,2.20527,2272.0,2271.5,2.20527]
[1625449960224,2.20527,2271.6,2271.5,2.20527]
[1625449967001,2.20527,2271.6,2271.3,2.20527]
[1625449968255,2.20527,2271.4,2271.3,2.20527]
[1625449969656,1.1,2272.3,2271.3,2.20527]
[1625449969756,1.65278982,2272.6,2271.3,5.50887]
[1625449969857,2.15335803,2272.7,2271.3,5.50887]
[1625449970310,2.20527,2271.9,2271.3,7.71414]
[1625449971107,2.20527,2271.9,2271.3,5.50887]
[1625449972269,4.41054,2271.4,2271.3,5.50887]
[1625449972370,1.1,2272.3,2271.3,5.50887]
[1625449972870,2.15513755,2272.7,2271.3,5.50887]
[1625449972969,1.1,2272.5,2271.3,5.50887]
[1625449974271,2.20527,2271.9,2271.7,2.20527]
[1625449975128,2.20527,2272.1,2271.7,2.20527]
[1625449975579,2.20527,2272.1,2272.0,50.1523]
[1625449975678,2.20527,2272.1,2272.0,53.1472]
[1625449976279,2.20527,2272.1,2272.0,55.35247]
[1625449977496,2.20527,2272.1,2272.0,5.20017]
[1625449979096,2.20527,2272.1,2271.7,2.20527]
[1625449979402,2.20527,2272.1,2270.3,1.0]
[1625449979501,3.07577,2272.1,2269.8,1.0]
[1625449979612,1.0,2272.0,2269.7,1.81037112]
[1625449979701,1.0,2272.0,2269.6,15.2247]
[1625449980102,1.0,2272.0,2269.7,15.979802]
[1625449980201,42.7354,2271.6,2269.7,15.979802]
[1625449980304,2.20527,2271.2,2271.1,2.20527]
[1625449982307,4.41054,2271.2,2271.1,2.20527]
[1625449985111,1.0,2272.2,2271.1,2.20527]
[1625449985213,14.5415,2272.6,2271.1,2.20527]
[1625449985214,14.5415,2272.6,2271.1,5.56507]
[1625449985465,14.5415,2272.6,2271.2,15.99105]
[1625449985763,0.5,2272.7,2271.2,15.99105]
[1625449985862,0.5,2272.7,2271.1,5.56507]
[1625449986362,2.20527,2271.6,2271.5,2.20527]
[1625449988016,0.5,2272.7,2271.5,2.20527]
[1625449988317,2.20527,2272.4,2272.3,2.20527]
[1625449988417,2.20527,2272.4,2272.3,4.77447]
[1625449988822,2.20527,2272.4,2272.3,2.5692]
[1625449990321,4.41054,2272.4,2272.3,2.5692]
[1625449993729,4.41054,2272.4,2272.0,2.20527]
[1625449996437,2.20527,2272.1,2272.0,2.20527]
[1625449998039,2.20527,2272.1,2272.0,18.284345]
[1625449999454,2.20527,2272.1,2272.0,2.20527]
[1625449999901,2.20527,2272.1,2272.0,42.42857]
[1625450000601,2.20527,2272.1,2272.0,2.20527]
[1625450009941,2.20527,2272.1,2272.0,18.252449]
[1625450011394,2.20527,2272.1,2272.0,2.20527]
[1625450015851,2.20527,2272.1,2271.0,1.0]
[1625450015948,2.20527,2272.1,2270.3,2.6121]
[1625450015949,5.54357,2272.1,2270.4,1.0]
[1625450016048,5.54357,2272.1,2269.7,4.13883675]
[1625450016148,1.0,2272.0,2269.7,4.13883675]
[1625450016350,1.0,2272.0,2269.9,1.81116583]
[1625450016549,2.20527,2271.2,2271.1,2.20527]
[1625450018467,4.41054,2271.2,2271.1,2.20527]
[1625450019418,4.41054,2271.2,2270.8,2.20527]
[1625450020120,4.41054,2271.2,2269.7,1.0]
[1625450020221,4.41054,2271.2,2269.6,13.7548]
[1625450020321,5.41054,2271.2,2269.6,13.7548]
[1625450020476,2.20527,2270.7,2270.3,2.20527]
[1625450020674,2.20527,2270.7,2270.3,5.05167]
[1625450020773,2.20527,2270.7,2270.4,16.105843]
[1625450021225,2.20527,2270.7,2270.3,5.05167]
[1625450022526,2.20527,2270.4,2270.3,5.05167]
[1625450023232,2.20527,2270.4,2269.5,1.81551386]
[1625450023431,2.20527,2270.4,2269.2,1.8178181]
[1625450023829,5.0,2270.3,2268.7,2.81819507]
[1625450023930,1.0,2270.3,2268.7,1.81819507]
[1625450024330,1.0,2270.3,2268.6,39.4507]
[1625450024433,1.0,2270.3,2268.8,16.033579]
[1625450024530,2.20527,2269.7,2269.6,2.20527]
[1625450024631,2.20527,2269.7,2269.6,5.04267]
[1625450026589,4.41054,2269.7,2269.6,5.04267]
[1625450026786,2.20527,2269.7,2269.6,5.04267]
[1625450027188,2.20527,2269.7,2269.6,20.992127]
[1625450027938,2.20527,2269.7,2269.6,5.04267]
[1625450028591,4.41054,2269.7,2269.6,5.04267]
[1625450030348,4.41054,2269.7,2269.6,21.147612]
[1625450032460,2.20527,2269.7,2269.6,21.147612]
[1625450032561,2.20527,2270.0,2269.6,21.147612]
[1625450033966,2.20527,2270.0,2269.6,22.025212]
[1625450034571,2.20527,2270.0,2269.9,2.20527]
[1625450037036,2.20527,2270.2,2269.9,2.20527]
[1625450037642,2.20527,2270.2,2268.7,1.0]
[1625450037743,2.20527,2270.2,2268.6,1.29578105]
[1625450037841,6.00697,2270.2,2268.6,1.29578105]
[1625450038044,6.00697,2270.2,2268.4,4.759]
[1625450038242,44.3811,2269.6,2268.4,4.759]
[1625450038343,44.3811,2269.6,2268.2,15.07504464]
[1625450038593,2.20527,2269.5,2269.1,2.20527]
[1625450040601,2.20527,2269.2,2269.1,2.20527]
[1625450051448,3.08237,2269.2,2269.1,2.20527]
[1625450051546,2.20527,2269.2,2269.1,2.20527]
[1625450054697,2.20527,2269.2,2268.9,2.20527]
[1625450056755,2.20527,2269.2,2269.1,5.01247]
[1625450057709,2.20527,2269.2,2269.1,20.912592]
[1625450062724,2.20527,2269.2,2269.1,18.707322]
[1625450062825,2.20527,2269.2,2268.9,2.20527]
[1625450064793,2.20527,2269.0,2268.9,2.20527]
[1625450078003,2.20527,2269.0,2268.6,2.20527]
[1625450078102,46.7721,2268.7,2268.6,2.20527]
[1625450078804,48.97737,2268.7,2268.5,3.2727]
[1625450078902,2.20527,2268.7,2268.0,2.20527]
[1625450080460,49.4253,2268.4,2268.0,2.20527]
[1625450080811,49.4253,2268.4,2268.3,2.20527]
[1625450081514,56.7763,2268.4,2267.1,1.0]
[1625450081616,56.7763,2268.4,2266.4,1.0]
[1625450081713,1.0,2268.3,2265.7,14.5182]
[1625450081816,1.0,2268.3,2265.7,29.3685]
[1625450082264,1.0,2268.3,2266.3,4.759]
[1625450082665,45.5516,2267.0,2266.3,4.759]
[1625450082768,48.1952,2267.0,2266.3,4.759]
[1625450082867,2.20527,2266.4,2266.3,6.96427]
[1625450088986,2.20527,2266.4,2266.3,4.759]
[1625450090949,7.20527,2266.4,2266.3,4.759]
[1625450091249,7.20527,2266.4,2266.1,2.20527]
[1625450091652,2.20527,2266.4,2266.1,2.20527]
[1625450091753,44.0902,2266.3,2266.1,2.20527]
[1625450092752,49.0902,2266.3,2266.1,2.20527]
[1625450092853,2.20527,2266.2,2266.1,2.20527]
[1625450093303,7.20527,2266.2,2266.1,2.20527]
[1625450093655,2.20527,2266.2,2266.1,2.20527]
[1625450094466,49.74117,2266.2,2265.8,2.20527]
[1625450094669,54.74117,2266.2,2265.8,2.20527]
[1625450094766,2.20527,2266.2,2265.8,2.20527]